fUST/lending_fUST_20240114
["ID","MTS","AMOUNT","RATE_DAILY","PERIOD"]
[311536392,1705198240918,-503.04789827,0.00030136,2]
[311536393,1705198240929,-501.80714204,0.00030136,2]
[311536394,1705198240938,-506.47856889,0.00030136,2]
[311536395,1705198240947,-502.85863465,0.00030136,2]
[311536396,1705198240959,-500.0,0.00030136,2]
[311536397,1705198240968,-500.0,0.00030136,2]
[311536398,1705198240977,-183.47243345,0.00030136,2]
[311536399,1705198240987,-500.0,0.00030136,2]
[311536400,1705198240999,-500.59988179,0.00030136,2]
[311536401,1705198241009,-500.0,0.00030136,2]
[311536402,1705198241091,-508.28923396,0.00030136,2]
[311536403,1705198241111,-500.0,0.00030136,2]
[311536404,1705198241121,-213.24552767,0.00030136,2]
[311536405,1705198241130,-505.48514853,0.00030136,2]
[311536406,1705198241139,-500.0,0.00030136,2]
[311536407,1705198241148,-500.0,0.00030136,2]
[311536408,1705198241157,-500.0,0.00030136,2]
[311536409,1705198241167,-500.0,0.00030136,2]
[311536410,1705198241176,-500.0,0.00030136,2]
[311536411,1705198241188,-500.0,0.00030136,2]
[311536412,1705198241198,-500.0,0.00030136,2]
[311536413,1705198241208,-500.0,0.00030136,2]
[311536414,1705198241217,-500.0,0.00030136,2]
[311536415,1705198241227,-502.53384804,0.00030136,2]
[311536416,1705198241236,-500.0,0.00030136,2]
[311536417,1705198241246,-500.0,0.00030136,2]
[311536418,1705198241255,-1689.39,0.00030136,2]
[311536419,1705198241266,-500.0,0.00030136,2]
[311536420,1705198241276,-500.0,0.00030136,2]
[311536421,1705198241286,-500.0,0.00030136,2]
[311536422,1705198241295,-501.42133558,0.00030136,2]
[311536423,1705198241305,-500.0,0.00030136,2]
[311536424,1705198241315,-500.0,0.00030136,2]
[311536425,1705198241325,-500.0,0.00030136,2]
[311536426,1705198241334,-500.0,0.00030136,2]
[311536427,1705198241343,-788.41,0.00030136,2]
[311536428,1705198241352,-500.0,0.00030136,2]
[311536429,1705198241361,-354.86930357,0.00030136,2]
[311536430,1705198241369,-501.32420891,0.00030136,2]
[311536431,1705198241378,-500.0,0.00030136,2]
[311536432,1705198241387,-406.0743424,0.00030136,2]
[311536433,1705198241395,-633.23207699,0.00030136,2]
[311536434,1705198241404,-500.0,0.00030136,2]
[311536435,1705198241413,-500.0,0.00030136,2]
[311536436,1705198241425,-500.0,0.00030136,2]
[311536437,1705198241436,-500.0,0.00030136,2]
[311536438,1705198241445,-500.0,0.00030136,2]
[311536439,1705198241454,-502.24408651,0.00030136,2]
[311536440,1705198241463,-501.85532918,0.00030136,2]
[311536441,1705198241471,-500.0,0.00030136,2]
[311536442,1705198241480,-500.0,0.00030136,2]
[311536443,1705198241489,-500.0,0.00030136,2]
[311536444,1705198241498,-500.0,0.00030136,2]
[311536445,1705198241508,-500.0,0.00030136,2]
[311536446,1705198241517,-500.0,0.00030136,2]
[311536447,1705198241526,-500.0,0.00030136,2]
[311536448,1705198241535,-500.0,0.00030136,2]
[311536449,1705198241543,-500.0,0.00030136,2]
[311536450,1705198241552,-500.0,0.00030136,2]
[311536451,1705198241561,-1315.88,0.00030136,2]
[311536452,1705198241570,-500.0,0.00030136,2]
[311536454,1705198241580,-500.0,0.00030136,2]
[311536455,1705198241589,-500.0,0.00030136,2]
[311536456,1705198241599,-500.0,0.00030136,2]
[311536458,1705198241609,-501.8944399,0.00030136,2]
[311536459,1705198241617,-500.0,0.00030136,2]
[311536460,1705198241626,-500.0,0.00030136,2]
[311536461,1705198241636,-500.0,0.00030136,2]
[311536462,1705198241645,-500.0,0.00030136,2]
[311536463,1705198241654,-501.26599081,0.00030136,2]
[311536464,1705198241663,-500.0,0.00030136,2]
[311536465,1705198241672,-500.0,0.00030136,2]
[311536467,1705198241683,-500.0,0.00030136,2]
[311536468,1705198241692,-500.0,0.00030136,2]
[311536469,1705198241702,-502.22175438,0.00030136,2]
[311536470,1705198241711,-500.0,0.00030136,2]
[311536471,1705198241721,-500.0,0.00030136,2]
[311536472,1705198241731,-564.21902284,0.00030136,2]
[311536473,1705198241741,-500.0,0.00030136,2]
[311536474,1705198241750,-500.63100794,0.00030136,2]
[311536475,1705198241759,-500.0,0.00030136,2]
[311536476,1705198241769,-4290.42,0.00030136,2]
[311536477,1705198241778,-500.0,0.00030136,2]
[311536478,1705198241788,-500.0,0.00030136,2]
[311536479,1705198241797,-500.0,0.00030136,2]
[311536480,1705198241809,-500.0,0.00030136,2]
[311536481,1705198241818,-500.0,0.00030136,2]
[311536482,1705198241828,-500.0,0.00030136,2]
[311536483,1705198241838,-501.80968584,0.00030136,2]
[311536484,1705198241847,-500.0,0.00030136,2]
[311536485,1705198241856,-500.0,0.00030136,2]
[311536486,1705198241867,-500.0,0.00030136,2]
[311536487,1705198241879,-500.0,0.00030136,2]
[311536488,1705198241888,-501.62544627,0.00030136,2]
[311536489,1705198241898,-547.09,0.00030136,2]
[311536490,1705198241907,-509.43458407,0.00030136,2]
[311536491,1705198241918,-500.0,0.00030136,2]
[311536492,1705198241929,-500.0,0.00030136,2]
[311536493,1705198241938,-500.0,0.00030136,2]
[311536494,1705198241947,-500.0,0.00030136,2]
[311536495,1705198241956,-500.0,0.00030136,2]
[311536496,1705198241965,-500.0,0.00030136,2]
[311536497,1705198241975,-500.0,0.00030136,2]
[311536498,1705198241984,-500.0,0.00030136,2]
[311536499,1705198241993,-500.0,0.00030136,2]
[311536500,1705198242002,-500.0,0.00030136,2]
[311536501,1705198242011,-506.61890384,0.00030136,2]
[311536502,1705198242021,-773.04,0.00030136,2]
[311536503,1705198242030,-500.0,0.00030136,2]
[311536504,1705198242040,-500.0,0.00030136,2]
[311536505,1705198242049,-500.0,0.00030136,2]
[311536506,1705198242059,-500.0,0.00030136,2]
[311536507,1705198242068,-471.10965015,0.00030136,2]
[311536508,1705198242077,-500.0,0.00030136,2]
[311536509,1705198242086,-500.0,0.00030136,2]
[311536510,1705198242095,-500.0,0.00030136,2]
[311536511,1705198242104,-500.0,0.00030136,2]
[311536512,1705198242113,-500.0,0.00030136,2]
[311536513,1705198242122,-500.0,0.00030136,2]
[311536514,1705198242131,-500.0,0.00030136,2]
[311536515,1705198242141,-500.0,0.00030136,2]
[311536516,1705198242150,-501.74296753,0.00030136,2]
[311536517,1705198242159,-500.0,0.00030136,2]
[311536518,1705198242168,-500.0,0.00030136,2]
[311536519,1705198242179,-1227.62,0.00030136,2]
[311536520,1705198242188,-500.0,0.00030136,2]
[311536521,1705198242197,-201.13046414,0.00030136,2]
[311536522,1705198242206,-500.0,0.00030136,2]
[311536523,1705198242215,-500.0,0.00030136,2]
[311536524,1705198242224,-500.0,0.00030136,2]
[311536525,1705198242234,-688.1402264,0.00030136,2]
[311536526,1705198242243,-500.0,0.00030136,2]
[311536527,1705198242252,-500.0,0.00030136,2]
[311536528,1705198242261,-500.0,0.00030136,2]
[311536529,1705198242271,-500.0,0.00030136,2]
[311536530,1705198242280,-500.0,0.00030136,2]
[311536531,1705198242289,-6295.24,0.00030136,2]
[311536532,1705198242298,-500.0,0.00030136,2]
[311536533,1705198242307,-500.0,0.00030136,2]
[311536534,1705198242316,-500.0,0.00030136,2]
[311536535,1705198242325,-500.0,0.00030136,2]
[311536536,1705198242335,-500.0,0.00030136,2]
[311536537,1705198242345,-625.94,0.00030136,2]
[311536538,1705198242354,-500.0,0.00030136,2]
[311536539,1705198242364,-154.6228574,0.00030137,2]
[311536540,1705198242373,-153.1880119,0.00030137,2]
[311536541,1705198242382,-153.2699126,0.00030137,2]
[311536542,1705198242391,-154.5972832,0.00030137,2]
[311536543,1705198242400,-154.1994419,0.00030137,2]
[311536544,1705198242408,-156.4476198,0.00030137,2]
[311536545,1705198242418,-655.30601003,0.00030137,2]
[311536546,1705198242428,-177.279578,0.00030237,2]
[311536547,1705198242437,-198.672592,0.00030237,2]
[311536548,1705198242446,-201.390101,0.00030237,2]
[311536549,1705198242455,-158.71332,0.00030237,2]
[311536550,1705198242465,-35653.01739407,0.0003031,3]
[311536551,1705198242474,-505.23091024,0.00030399,2]
[311536552,1705198242483,-155.19572533,0.000304,4]
[311536553,1705198242492,-155.52584723,0.000304,4]
[311536554,1705198242501,-155.26419244,0.000304,4]
[311536555,1705198242511,-415.05618062,0.00030409,2]
[311536556,1705198242522,-500.0,0.00030409,2]
[311536557,1705198242532,-228.80865474,0.00030409,2]
[311536558,1705198242541,-473.69285594,0.00030409,2]
[311536559,1705198242550,-500.0,0.0003041,2]
[311536560,1705198242560,-496.52264113,0.0003041,2]
[311536561,1705198242570,-500.0,0.0003041,2]
[311536562,1705198242580,-500.0,0.0003041,2]
[311536563,1705198242589,-500.0,0.0003041,2]
[311536564,1705198242600,-500.0,0.0003041,2]
[311536565,1705198242610,-503.44180302,0.0003041,2]
[311536566,1705198242620,-280.0,0.0003041,2]
[311536567,1705198242629,-500.0,0.0003041,2]
[311536568,1705198242639,-501.57429679,0.0003041,2]
[311536569,1705198242651,-500.0,0.0003041,2]
[311536570,1705198242661,-534.24860019,0.0003041,2]
[311536571,1705198242672,-500.0,0.0003041,2]
[311536572,1705198242683,-500.0,0.0003041,2]
[311536573,1705198242694,-500.0,0.0003041,2]
[311536574,1705198242704,-500.0,0.0003041,2]
[311536575,1705198242714,-500.0,0.0003041,2]
[311536576,1705198242724,-500.0,0.0003041,2]
[311536577,1705198242735,-566.47059426,0.0003041,2]
[311536578,1705198242744,-500.0,0.0003041,2]
[311536579,1705198242753,-500.0,0.0003041,2]
[311536580,1705198242765,-500.0,0.0003041,2]
[311536581,1705198242774,-501.8628807,0.0003041,2]
[311536582,1705198242785,-500.0,0.0003041,2]
[311536583,1705198242796,-503.21825677,0.0003041,2]
[311536584,1705198242806,-500.0,0.0003041,2]
[311536585,1705198242816,-500.0,0.0003041,2]
[311536586,1705198242825,-500.0,0.0003041,2]
[311536587,1705198242834,-500.0,0.0003041,2]
[311536588,1705198242843,-500.0,0.0003041,2]
[311536589,1705198242852,-500.0,0.0003041,2]
[311536590,1705198242862,-500.0,0.0003041,2]
[311536591,1705198242871,-500.0,0.0003041,2]
[311536592,1705198242881,-1000.0,0.0003041,2]
[311536593,1705198242891,-500.0,0.0003041,2]
[311536594,1705198242900,-500.0,0.0003041,2]
[311536595,1705198242909,-500.0,0.0003041,2]
[311536596,1705198242918,-500.0,0.0003041,2]
[311536597,1705198242928,-256.74192711,0.0003041,2]
[311536598,1705198242937,-500.0,0.0003041,2]
[311536599,1705198242946,-500.0,0.0003041,2]
[311536600,1705198242956,-500.0,0.0003041,2]
[311536601,1705198242965,-500.0,0.0003041,2]
[311536602,1705198242974,-500.0,0.0003041,2]
[311536603,1705198242984,-506.04398539,0.0003041,2]
[311536604,1705198242994,-500.0,0.0003041,2]
[311536605,1705198243003,-500.0,0.0003041,2]
[311536606,1705198243012,-500.0,0.0003041,2]
[311536607,1705198243021,-501.92629128,0.0003041,2]
[311536608,1705198243030,-502.90104479,0.0003041,2]
[311536609,1705198243039,-568.8683551,0.0003041,2]
[311536610,1705198243049,-500.0,0.0003041,2]
[311536612,1705198243058,-500.0,0.0003041,2]
[311536614,1705198243068,-500.91127325,0.0003041,2]
[311536616,1705198243077,-500.0,0.0003041,2]
[311536617,1705198243086,-500.0,0.0003041,2]
[311536619,1705198243095,-500.0,0.0003041,2]
[311536621,1705198243105,-500.0,0.0003041,2]
[311536623,1705198243114,-506.27531894,0.0003041,2]
[311536625,1705198243123,-500.0,0.0003041,2]
[311536627,1705198243132,-500.0,0.0003041,2]
[311536629,1705198243141,-500.0,0.0003041,2]
[311536631,1705198243151,-500.0,0.0003041,2]
[311536634,1705198243160,-500.0,0.0003041,2]
[311536636,1705198243169,-500.0,0.0003041,2]
[311536638,1705198243178,-501.51539704,0.0003041,2]
[311536640,1705198243187,-504.68512897,0.0003041,2]
[311536642,1705198243196,-500.0,0.0003041,2]
[311536644,1705198243205,-502.96832029,0.0003041,2]
[311536647,1705198243215,-503.1071224,0.0003041,2]
[311536650,1705198243225,-500.0,0.0003041,2]
[311536653,1705198243234,-582.04442583,0.0003041,2]
[311536654,1705198243243,-501.20208417,0.0003041,2]
[311536655,1705198243253,-500.87238742,0.0003041,2]
[311536656,1705198243262,-500.0,0.0003041,2]
[311536657,1705198243271,-500.0,0.0003041,2]
[311536658,1705198243280,-500.0,0.0003041,2]
[311536659,1705198243289,-502.36498599,0.0003041,2]
[311536660,1705198243298,-503.36381833,0.0003041,2]
[311536661,1705198243307,-500.0,0.0003041,2]
[311536662,1705198243317,-500.93686172,0.0003041,2]
[311536663,1705198243326,-500.0,0.0003041,2]
[311536664,1705198243336,-500.0,0.0003041,2]
[311536665,1705198243345,-503.3873243,0.0003041,2]
[311536666,1705198243354,-500.0,0.0003041,2]
[311536667,1705198243363,-500.0,0.0003041,2]
[311536672,1705198243449,-515.31325227,0.0003041,2]
[311536673,1705198243460,-504.62025724,0.0003041,2]
[311536674,1705198243469,-509.70718093,0.0003041,2]
[311536675,1705198243478,-503.12196146,0.0003041,2]
[311536676,1705198243487,-502.98045114,0.0003041,2]
[311536678,1705198243498,-500.0,0.0003041,2]
[311536680,1705198243508,-509.39793533,0.0003041,2]
[311536682,1705198243517,-504.54980695,0.0003041,2]
[311536684,1705198243525,-500.0,0.0003041,2]
[311536685,1705198243534,-500.0,0.0003041,2]
[311536686,1705198243543,-500.0,0.0003041,2]
[311536688,1705198243553,-500.0,0.0003041,2]
[311536689,1705198243562,-501.35380754,0.0003041,2]
[311536690,1705198243571,-501.75935001,0.0003041,2]
[311536691,1705198243580,-500.0,0.0003041,2]
[311536692,1705198243590,-500.0,0.0003041,2]
[311536693,1705198243599,-512.73212551,0.0003041,2]
[311536694,1705198243609,-505.65519792,0.0003041,2]
[311536695,1705198243618,-504.85185307,0.0003041,2]
[311536696,1705198243628,-500.0,0.0003041,2]
[311536697,1705198243638,-505.55228209,0.0003041,2]
[311536698,1705198243647,-501.03600058,0.0003041,2]
[311536699,1705198243657,-505.56549688,0.0003041,2]
[311536700,1705198243667,-500.0,0.0003041,2]
[311536701,1705198243677,-602.72039454,0.0003041,2]
[311536702,1705198243688,-500.0,0.0003041,2]
[311536703,1705198243699,-619.53742458,0.0003041,2]
[311536704,1705198243710,-502.39685917,0.0003041,2]
[311536705,1705198243722,-500.0,0.0003041,2]
[311536706,1705198243732,-500.0,0.0003041,2]
[311536707,1705198243744,-366.94048723,0.0003041,2]
[311536708,1705198243755,-500.0,0.0003041,2]
[311536709,1705198243766,-500.0,0.0003041,2]
[311536710,1705198243775,-1689.39,0.0003041,2]
[311536711,1705198243785,-500.0,0.0003041,2]
[311536712,1705198243796,-500.0,0.0003041,2]
[311536713,1705198243806,-500.0,0.0003041,2]
[311536714,1705198243817,-518.62248158,0.0003041,2]
[311536715,1705198243827,-500.0,0.0003041,2]
[311536716,1705198243837,-500.0,0.0003041,2]
[311536717,1705198243847,-500.0,0.0003041,2]
[311536718,1705198243857,-788.41,0.0003041,2]
[311536719,1705198243867,-500.0,0.0003041,2]
[311536720,1705198243875,-507.64365218,0.0003041,2]
[311536721,1705198243885,-500.0,0.0003041,2]
[311536722,1705198243895,-500.0,0.0003041,2]
[311536723,1705198243904,-500.0,0.0003041,2]
[311536724,1705198243913,-500.0,0.0003041,2]
[311536725,1705198243922,-500.0,0.0003041,2]
[311536726,1705198243936,-501.80095131,0.0003041,2]
[311536727,1705198243945,-505.41689106,0.0003041,2]
[311536728,1705198243955,-500.0,0.0003041,2]
[311536729,1705198243964,-502.11758507,0.0003041,2]
[311536730,1705198243973,-503.01697234,0.0003041,2]
[311536731,1705198243982,-500.0,0.0003041,2]
[311536732,1705198243991,-503.75141497,0.0003041,2]
[311536733,1705198244001,-500.0,0.0003041,2]
[311536734,1705198244010,-500.0,0.0003041,2]
[311536735,1705198244019,-500.0,0.0003041,2]
[311536736,1705198244029,-1315.88,0.0003041,2]
[311536737,1705198244037,-500.0,0.0003041,2]
[311536738,1705198244046,-500.0,0.0003041,2]
[311536739,1705198244056,-500.0,0.0003041,2]
[311536740,1705198244065,-500.0,0.0003041,2]
[311536741,1705198244074,-500.0,0.0003041,2]
[311536742,1705198244084,-500.0,0.0003041,2]
[311536743,1705198244095,-502.28719276,0.0003041,2]
[311536744,1705198244104,-502.20511041,0.0003041,2]
[311536745,1705198244113,-506.60600586,0.0003041,2]
[311536746,1705198244123,-500.0,0.0003041,2]
[311536747,1705198244133,-500.0,0.0003041,2]
[311536748,1705198244142,-500.0,0.0003041,2]
[311536749,1705198244151,-500.0,0.0003041,2]
[311536750,1705198244161,-310.91729699,0.0003041,2]
[311536751,1705198244170,-517.08129978,0.0003041,2]
[311536752,1705198244180,-500.0,0.0003041,2]
[311536753,1705198244189,-4290.42,0.0003041,2]
[311536754,1705198244199,-489.49394302,0.0003041,2]
[311536755,1705198244208,-503.76283896,0.0003041,2]
[311536756,1705198244218,-500.0,0.0003041,2]
[311536757,1705198244228,-501.33867469,0.0003041,2]
[311536758,1705198244238,-500.0,0.0003041,2]
[311536759,1705198244247,-500.0,0.0003041,2]
[311536760,1705198244257,-503.43989046,0.0003041,2]
[311536761,1705198244266,-500.96510976,0.0003041,2]
[311536762,1705198244275,-500.0,0.0003041,2]
[311536763,1705198244285,-500.0,0.0003041,2]
[311536764,1705198244294,-547.09,0.0003041,2]
[311536765,1705198244303,-500.0,0.0003041,2]
[311536766,1705198244312,-500.0,0.0003041,2]
[311536767,1705198244321,-501.25426022,0.0003041,2]
[311536768,1705198244330,-500.0,0.0003041,2]
[311536769,1705198244341,-505.04112074,0.0003041,2]
[311536770,1705198244350,-500.0,0.0003041,2]
[311536771,1705198244359,-500.0,0.0003041,2]
[311536772,1705198244369,-510.12544456,0.0003041,2]
[311536773,1705198244379,-544.4970078,0.0003041,2]
[311536774,1705198244389,-500.0,0.0003041,2]
[311536775,1705198244399,-773.04,0.0003041,2]
[311536776,1705198244408,-500.0,0.0003041,2]
[311536777,1705198244418,-505.31100691,0.0003041,2]
[311536778,1705198244428,-500.0,0.0003041,2]
[311536779,1705198244437,-502.51187316,0.0003041,2]
[311536780,1705198244446,-500.0,0.0003041,2]
[311536781,1705198244455,-501.83031304,0.0003041,2]
[311536782,1705198244464,-500.0,0.0003041,2]
[311536783,1705198244473,-500.0,0.0003041,2]
[311536784,1705198244482,-504.04864165,0.0003041,2]
[311536785,1705198244492,-192.12346729,0.0003041,2]
[311536786,1705198244501,-500.0,0.0003041,2]
[311536787,1705198244512,-500.0,0.0003041,2]
[311536788,1705198244521,-501.90739506,0.0003041,2]
[311536789,1705198244530,-505.04437629,0.0003041,2]
[311536790,1705198244539,-1227.62,0.0003041,2]
[311536791,1705198244548,-500.0,0.0003041,2]
[311536792,1705198244558,-500.0,0.0003041,2]
[311536793,1705198244569,-507.54880534,0.0003041,2]
[311536794,1705198244579,-515.38428563,0.0003041,2]
[311536795,1705198244589,-500.0,0.0003041,2]
[311536796,1705198244598,-500.0,0.0003041,2]
[311536797,1705198244608,-500.0,0.0003041,2]
[311536798,1705198244618,-501.42415586,0.0003041,2]
[311536799,1705198244628,-500.0,0.0003041,2]
[311536800,1705198244639,-6295.24,0.0003041,2]
[311536801,1705198244650,-500.0,0.0003041,2]
[311536802,1705198244659,-505.9523721,0.0003041,2]
[311536803,1705198244670,-500.0,0.0003041,2]
[311536804,1705198244681,-500.0,0.0003041,2]
[311536805,1705198244691,-512.59062241,0.0003041,2]
[311536806,1705198244701,-625.94,0.0003041,2]
[311536807,1705198244710,-604.603939,0.0003041,2]
[311536808,1705198244720,-604.603939,0.0003041,2]
[311536809,1705198244729,-604.603939,0.0003041,2]
[311536810,1705198244738,-604.603939,0.0003041,2]
[311536811,1705198244747,-151.0,0.0003041,2]
[311536812,1705198244756,-831.205582,0.0003041,2]
[311536813,1705198244767,-831.205582,0.0003041,2]
[311536814,1705198244776,-831.205582,0.0003041,2]
[311536815,1705198244786,-831.205582,0.0003041,2]
[311536816,1705198244796,-201.390101,0.00030615,2]
[311536817,1705198244805,-1134.0,0.0003066,30]
[311536818,1705198244814,-151.61,0.0003066,30]
[311536819,1705198244823,-150.93,0.0003066,30]
[311536820,1705198244832,-150.96,0.0003066,30]
[311536821,1705198244842,-1973.0,0.0003066,30]
[311536822,1705198244851,-1134.0,0.0003067,30]
[311536823,1705198244860,-150.5,0.0003067,30]
[311536824,1705198244869,-150.5,0.0003067,30]
[311536825,1705198244878,-150.5,0.0003067,30]
[311536826,1705198244887,-1973.0,0.0003067,30]
[311536827,1705198244897,-282.51,0.0003068,30]
[311536828,1705198244906,-1134.0,0.0003068,30]
[311536829,1705198244914,-150.5,0.0003068,30]
[311536830,1705198244923,-150.5,0.0003068,30]
[311536831,1705198244933,-150.5,0.0003068,30]
[311536832,1705198244943,-1973.0,0.0003068,30]
[311536833,1705198244952,-167.55,0.0003068,30]
[311536834,1705198244961,-1000.0,0.00030683,14]
[311536835,1705198244969,-1000.0,0.00030683,14]
[311536836,1705198244979,-450.17381278,0.00030683,14]
[311536837,1705198245196,-500.0,0.0003041,2]
[311536838,1705198245205,-549.82618722,0.00030683,14]
[311536839,1705198245215,-871.36184168,0.00030683,14]
[311536840,1705198245224,-500.0,0.00030684,2]
[311536841,1705198245234,-286.70183541,0.00030684,2]
[311536842,1705198245247,-213.29816459,0.00030684,2]
[311536843,1705198245256,-500.0,0.00030684,2]
[311536844,1705198245265,-51.46854267,0.00030684,2]
[311536851,1705198246581,-448.53145733,0.00030684,2]
[311536852,1705198246590,-564.51429133,0.00030684,2]
[311536853,1705198246599,-500.0,0.00030684,2]
[311536854,1705198246613,-514.19182382,0.00030684,2]
[311536855,1705198246625,-402.47109199,0.00030684,2]
[311536879,1705198697323,260.35384667,0.00021945,7]
[311536898,1705199081372,260.35384667,0.00021932,7]
[311536960,1705199431852,-155.01395126,0.00021925,4]
[311536963,1705199431862,-2036.09478117,0.00021925,2]
[311536964,1705199431871,-1579.82218631,0.00021926,2]
[311536966,1705199431880,-155.19572533,0.00021932,2]
[311536968,1705199431890,-155.26419244,0.00021932,2]
[311536970,1705199431899,-155.52584723,0.00021932,2]
[311536971,1705199431908,-5941.69376135,0.0002195,2]
[311536973,1705199431917,-260.35384667,0.00024143,7]
[311536975,1705199431926,-200.0,0.00024144,7]
[311536976,1705199431935,-280.0,0.00026558,15]
[311536978,1705199431944,-168.52305,0.00028227,2]
[311536979,1705199431953,-441.80245908,0.00028354,2]
[311536981,1705199431962,-2327.26230769,0.00028354,2]
[311537020,1705199437891,-1579.82218631,0.00021924,2]
[311537022,1705199437901,-624.68155796,0.00028354,2]
[311537034,1705199438009,-874.55073671,0.00028354,2]
[311537036,1705199438019,-1161.81094399,0.00028354,2]
[311537038,1705199438028,-3267.22061673,0.00028354,2]
[311537040,1705199438037,-189.08850048,0.00029347,2]
[311537042,1705199438046,-165.11850081,0.00029347,2]
[311537044,1705199438055,-1000.0,0.00029347,7]
[311537046,1705199438065,-803.57743445,0.00029347,2]
[311537048,1705199438074,-1212.24243636,0.0003,2]
[311537050,1705199438084,-764.0674811,0.0003,2]
[311537052,1705199438093,-1212.23031285,0.0003,2]
[311537054,1705199438102,-386.0,0.0003,2]
[311537056,1705199438111,-687.21028914,0.00030032,4]
[311537058,1705199438121,-12688.04790315,0.00030033,4]
[311537060,1705199438130,-3969.16922576,0.00030035,2]
[311537062,1705199438139,-3453.81,0.00030126,3]
[311537064,1705199438148,-4795.42,0.00030126,3]
[311537066,1705199438157,-1834.96281486,0.00030126,3]
[311537158,1705199445940,-155.01395126,0.00027121,4]
[311537159,1705199445950,-2161.22718514,0.00030126,3]
[311537160,1705199445960,-3330.16,0.00030126,3]
[311537161,1705199445970,-349.80363276,0.00030134,7]
[311537162,1705199445979,-623.72221033,0.00030135,4]
[311537163,1705199445988,-500.0,0.00030136,2]
[311537164,1705199445997,-494.9431029,0.00030136,2]
[311537165,1705199446007,-500.0,0.00030136,2]
[311537166,1705199446016,-500.0,0.00030136,2]
[311537167,1705199446025,-500.89998059,0.00030136,2]
[311537168,1705199446034,-500.0,0.00030136,2]
[311537169,1705199446043,-504.93057832,0.00030136,2]
[311537170,1705199446052,-500.0,0.00030136,2]
[311537171,1705199446061,-503.11562979,0.00030136,2]
[311537172,1705199446070,-550.0,0.00030136,2]
[311537173,1705199446079,-500.0,0.00030136,2]
[311537174,1705199446088,-505.12210664,0.00030136,2]
[311537175,1705199446097,-500.0,0.00030136,2]
[311537176,1705199446106,-501.16140036,0.00030136,2]
[311537177,1705199446116,-577.60757592,0.00030136,2]
[311537178,1705199446125,-500.0,0.00030136,2]
[311537179,1705199446134,-643.66658219,0.00030136,2]
[311537180,1705199446143,-500.0,0.00030136,2]
[311537181,1705199446153,-501.7927214,0.00030136,2]
[311537182,1705199446162,-534.22898724,0.00030136,2]
[311537183,1705199446171,-502.34300527,0.00030136,2]
[311537184,1705199446181,-503.61558939,0.00030136,2]
[311537185,1705199446190,-455.60495024,0.00030136,2]
[311537186,1705199446199,-532.46959026,0.00030136,2]
[311537187,1705199446209,-500.0,0.00030136,2]
[311537188,1705199446220,-501.67031792,0.00030136,2]
[311537189,1705199446230,-501.7758194,0.00030136,2]
[311537190,1705199446240,-501.78617306,0.00030136,2]
[311537191,1705199446249,-515.5027129,0.00030136,2]
[311537193,1705199446258,-500.0,0.00030136,2]
[311537195,1705199446268,-525.8177469,0.00030136,2]
[311537197,1705199446277,-500.0,0.00030136,2]
[311537198,1705199446286,-500.0,0.00030136,2]
[311537200,1705199446295,-500.0,0.00030136,2]
[311537202,1705199446305,-502.84042653,0.00030136,2]
[311537204,1705199446313,-504.54980695,0.00030136,2]
[311537206,1705199446323,-500.0,0.00030136,2]
[311537207,1705199446332,-500.0,0.00030136,2]